[Event "2. Itzehoer Schach Open"]
[Site "Itzehoe, Germany"]
[Date "2023.04.29"]
[Round "2.48"]
[White "Roebers, Bregje"]
[Black "Schartl, Richard"]
[Result "1-0"]
[TimeControl "90 min für 40 Züge, Rest 30 min + 30 Sek pro Zug"]
[WhiteElo "1162"]
[BlackElo "849"]

1. e4 {[%clk 01:30:57]} {[%emt 00:00:02]} c5 {[%clk 01:30:19]} {[%emt
00:00:41]} 2. Nf3 {[%clk 01:31:18]} {[%emt 00:00:09]} Nc6 {[%clk 01:30:36]}
{[%emt 00:00:14]} 3. c3 {[%clk 01:31:36]} {[%emt 00:00:12]} e5 {[%clk
01:30:05]} {[%emt 00:01:02]} 4. d4 {[%clk 01:31:10]} {[%emt 00:00:56]} cxd4
{[%clk 01:30:06]} {[%emt 00:00:28]} 5. cxd4 {[%clk 01:31:30]} {[%emt 00:00:11]}
d6 {[%clk 01:30:00]} {[%emt 00:00:36]} 6. dxe5 {[%clk 01:31:45]} {[%emt
00:00:15]} dxe5 {[%clk 01:29:39]} {[%emt 00:00:51]} 7. Qxd8+ {[%clk 01:31:59]}
{[%emt 00:00:16]} Nxd8 {[%clk 01:29:41]} {[%emt 00:00:10]} 8. Nxe5 {[%clk
01:32:20]} {[%emt 00:00:26]} Bd6 {[%clk 01:28:38]} {[%emt 00:01:33]} 9. Nf3
{[%clk 01:32:42]} {[%emt 00:00:09]} Nc6 {[%clk 01:28:59]} {[%emt 00:00:09]} 10.
a3 {[%clk 01:32:31]} {[%emt 00:00:41]} a6 {[%clk 01:28:30]} {[%emt 00:00:52]}
11. Be2 {[%clk 01:32:00]} {[%emt 00:01:08]} Nge7 {[%clk 01:28:34]} {[%emt
00:00:25]} 12. O-O {[%clk 01:32:16]} {[%emt 00:00:15]} O-O {[%clk 01:28:36]}
{[%emt 00:00:28]} 13. Nc3 {[%clk 01:32:35]} {[%emt 00:00:11]} Bg4 {[%clk
01:28:19]} {[%emt 00:00:46]} 14. h3 {[%clk 01:32:53]} {[%emt 00:00:13]} Bxf3
{[%clk 01:27:58]} {[%emt 00:00:12]} 15. Bxf3 {[%clk 01:33:17]} {[%emt
00:00:45]} Na7 {[%clk 01:27:03]} {[%emt 00:01:14]} 16. Be3 {[%clk 01:33:40]}
{[%emt 00:00:17]} Nac6 {[%clk 01:26:47]} {[%emt 00:00:42]} 17. Rad1 {[%clk
01:33:53]} {[%emt 00:00:21]} Rfd8 {[%clk 01:24:33]} {[%emt 00:02:42]} 18. Bb6
{[%clk 01:32:33]} {[%emt 00:01:51]} Rd7 {[%clk 01:24:22]} {[%emt 00:00:41]} 19.
Bg4 {[%clk 01:31:40]} {[%emt 00:01:23]} f5 {[%clk 01:23:51]} {[%emt 00:01:01]}
20. exf5 {[%clk 01:31:12]} {[%emt 00:00:59]} Ne5 {[%clk 01:23:41]} {[%emt
00:00:39]} 21. Bd4 {[%clk 01:30:33]} {[%emt 00:01:09]} Nxg4 {[%clk 01:23:39]}
{[%emt 00:00:32]} 22. hxg4 {[%clk 01:30:51]} {[%emt 00:00:12]} Nc6 {[%clk
01:23:11]} {[%emt 00:00:59]} 23. Bb6 {[%clk 01:30:35]} {[%emt 00:00:46]} a5
{[%clk 01:20:20]} {[%emt 00:03:20]} 24. Ne4 {[%clk 01:30:26]} {[%emt 00:00:39]}
Ra6 {[%clk 01:20:37]} {[%emt 00:00:09]} 25. Bc5 {[%clk 01:30:15]} {[%emt
00:00:46]} Nb8 {[%clk 01:14:42]} {[%emt 00:06:13]} 26. Bxd6 {[%clk 01:30:31]}
{[%emt 00:00:25]} Rb6 {[%clk 01:13:48]} {[%emt 00:01:25]} 27. Bxb8 {[%clk
01:30:35]} {[%emt 00:00:25]} Re7 {[%clk 01:13:52]} {[%emt 00:00:26]} 28. f3
{[%clk 01:30:26]} {[%emt 00:00:39]} Re8 {[%emt 00:00:26]} 29. Bc7 {[%clk
01:30:26]} {[%emt 00:00:21]} 1-0

[Event "2. Itzehoer Schach Open"]
[Site "Itzehoe, Germany"]
[Date "2023.04.29"]
[Round "2.49"]
[White "Hieke, Andrea"]
[Black "Eichmann, Phillip"]
[Result "0-1"]
[TimeControl "90 min für 40 Züge, Rest 30 min + 30 Sek pro Zug"]
[WhiteElo "912"]
[BlackElo "1052"]

1. e4 {[%clk 01:30:55]} {[%emt 00:00:04]} e5 {[%clk 01:30:56]} {[%emt
00:00:04]} 2. Nf3 {[%clk 01:31:22]} {[%emt 00:00:04]} Nc6 {[%clk 01:31:24]}
{[%emt 00:00:02]} 3. Bc4 {[%clk 01:31:38]} {[%emt 00:00:14]} Bc5 {[%clk
01:31:48]} {[%emt 00:00:06]} 4. d3 {[%clk 01:31:52]} {[%emt 00:00:15]} Nf6
{[%clk 01:32:12]} {[%emt 00:00:06]} 5. Nc3 {[%clk 01:32:16]} {[%emt 00:00:06]}
d6 {[%clk 01:32:31]} {[%emt 00:00:11]} 6. O-O {[%clk 01:29:28]} {[%emt
00:03:19]} Bg4 {[%clk 01:32:49]} {[%emt 00:00:11]} 7. Nd5 {[%clk 01:28:49]}
{[%emt 00:01:10]} h6 {[%clk 01:32:07]} {[%emt 00:01:11]} 8. h3 {[%clk
01:28:43]} {[%emt 00:00:37]} Bh5 {[%clk 01:32:30]} {[%emt 00:00:07]} 9. Re1
{[%clk 01:27:03]} {[%emt 00:02:10]} Nd4 {[%clk 01:32:30]} {[%emt 00:00:30]} 10.
Be3 {[%clk 01:22:42]} {[%emt 00:04:51]} Nxf3+ {[%clk 01:32:43]} {[%emt
00:00:17]} 11. gxf3 {[%clk 01:22:46]} {[%emt 00:00:26]} c6 {[%clk 01:32:41]}
{[%emt 00:00:33]} 12. d4 {[%clk 01:21:04]} {[%emt 00:02:10]} cxd5 {[%clk
01:32:37]} {[%emt 00:00:35]} 13. exd5 {[%clk 01:20:21]} {[%emt 00:01:14]} exd4
{[%clk 01:32:35]} {[%emt 00:00:31]} 14. Bxd4+ {[%clk 01:20:31]} {[%emt
00:00:19]} Kd7 {[%clk 01:32:27]} {[%emt 00:00:38]} 15. Bb5+ {[%clk 01:19:29]}
{[%emt 00:01:33]} Kc7 {[%clk 01:32:44]} {[%emt 00:00:12]} 16. Re3 {[%clk
01:18:36]} {[%emt 00:01:24]} Nxd5 {[%clk 01:32:56]} {[%emt 00:00:18]} 17. Rb3
{[%clk 01:16:55]} {[%emt 00:02:11]} a6 {[%clk 01:32:42]} {[%emt 00:00:44]} 18.
Bc4 {[%clk 01:16:02]} {[%emt 00:01:23]} Qg5+ {[%clk 01:31:44]} {[%emt
00:01:28]} 19. Kf1 {[%clk 01:15:45]} {[%emt 00:00:47]} Nb6 {[%emt 00:04:15]} 20.
Qd3 {[%clk 01:13:38]} Bg6 {[%clk 01:29:42]} {[%emt 00:01:24]} 21. Qc3 {[%clk
01:13:07]} {[%emt 00:01:02]} Bxd4 {[%clk 01:29:04]} {[%emt 00:01:08]} 22. Qxd4
{[%clk 01:13:07]} {[%emt 00:00:29]} Qc5 {[%clk 01:29:24]} {[%emt 00:00:10]} 23.
Qf4 {[%clk 01:08:45]} {[%emt 00:04:52]} Nxc4 {[%clk 01:29:16]} {[%emt
00:00:38]} 24. Rc3 {[%clk 01:08:05]} {[%emt 00:01:08]} b5 {[%clk 01:29:29]}
{[%emt 00:00:17]} 25. b3 {[%clk 01:07:28]} {[%emt 00:01:07]} Qb4 {[%clk
01:29:37]} {[%emt 00:00:21]} 26. Qe3 {[%clk 01:03:41]} {[%emt 00:04:17]} Nxe3+
{[%clk 01:29:56]} {[%emt 00:00:12]} 27. Rxe3 {[%clk 01:03:36]} {[%emt
00:00:35]} Rhe8 {[%clk 01:30:11]} {[%emt 00:00:15]} 28. Rae1 {[%clk 01:03:40]}
{[%emt 00:00:26]} f6 {[%clk 01:30:11]} {[%emt 00:00:30]} 29. Re7+ {[%clk
01:03:25]} {[%emt 00:00:44]} Rxe7 {[%clk 01:30:26]} {[%emt 00:00:17]} 30. Rxe7+
{[%clk 01:03:45]} {[%emt 00:00:09]} Kc6 {[%clk 01:30:48]} {[%emt 00:00:08]} 31.
Rxg7 {[%clk 01:04:00]} {[%emt 00:00:13]} Bxc2 {[%clk 01:31:09]} {[%emt
00:00:10]} 32. Rg6 {[%clk 01:04:13]} {[%emt 00:00:17]} Bxg6 {[%clk 01:31:28]}
{[%emt 00:00:11]} 33. a4 {[%clk 01:03:45]} {[%emt 00:00:58]} Qxb3 {[%clk
01:31:43]} {[%emt 00:00:16]} 34. Kg2 {[%clk 01:03:57]} {[%emt 00:00:17]} Qxa4
{[%clk 01:32:03]} 35. Kg3 {[%clk 01:03:44]} {[%emt 00:00:54]} Re8 {[%clk
01:32:23]} {[%emt 00:00:10]} 36. f4 {[%clk 01:04:06]} {[%emt 00:00:08]} Qb3+
{[%clk 01:32:38]} {[%emt 00:00:15]} 37. Kg4 {[%clk 01:03:53]} {[%emt 00:00:42]}
Re4 {[%clk 01:32:36]} {[%emt 00:00:32]} 38. f3 {[%clk 01:03:57]} {[%emt
00:00:27]} h5+ {[%clk 01:32:49]} {[%emt 00:00:17]} 39. Kg3 {[%clk 01:04:02]}
{[%emt 00:00:24]} Kd5 {[%clk 01:32:35]} {[%emt 00:00:45]} 40. h4 {[%clk
01:03:43]} {[%emt 00:00:49]} Bf5 {[%clk 01:32:37]} {[%emt 00:00:28]} 41. Kf2
{[%clk 01:03:41]} {[%emt 00:00:32]} Rxf4 {[%clk 01:32:52]} {[%emt 00:00:15]} 42.
Kg3 {[%clk 01:03:41]} {[%emt 00:00:29]} Rxf3+ {[%clk 01:32:54]} {[%emt
00:00:28]} 43. Kg2 {[%clk 01:03:34]} {[%emt 00:00:38]} Rc3 {[%clk 01:33:11]}
{[%emt 00:00:13]} 44. Kf2 {[%clk 01:03:28]} {[%emt 00:00:36]} Qb2+ {[%clk
01:33:32]} {[%emt 00:00:09]} 45. Ke1 {[%clk 01:03:49]} {[%emt 00:00:08]} Rc1#
{[%clk 01:32:59]} {[%emt 00:00:09]} 0-1

[Event "2. Itzehoer Schach Open"]
[Site "Itzehoe, Germany"]
[Date "2023.04.29"]
[Round "2.40"]
[White "Frahm, Ben Jonas"]
[Black "Lorenzen, Lars"]
[Result "1-0"]
[TimeControl "90 min für 40 Züge, Rest 30 min + 30 Sek pro Zug"]
[WhiteElo "1406"]
[BlackElo "1218"]

1. e4 {[%clk 01:30:57]} {[%emt 00:00:03]} d6 {[%clk 01:30:58]} {[%emt
00:00:03]} 2. d4 {[%clk 01:31:21]} {[%emt 00:00:06]} Nf6 {[%clk 01:31:24]}
{[%emt 00:00:04]} 3. Nc3 {[%clk 01:31:44]} {[%emt 00:00:07]} g6 {[%emt
00:00:06]} 4. Be3 {[%clk 01:31:47]} {[%emt 00:00:25]} c6 {[%clk 01:32:14]}
{[%emt 00:00:05]} 5. Be2 {[%clk 01:31:51]} {[%emt 00:00:26]} Bg7 {[%clk
01:32:20]} {[%emt 00:00:24]} 6. f4 {[%clk 01:32:04]} {[%emt 00:00:18]} Nbd7
{[%clk 01:32:28]} {[%emt 00:00:22]} 7. Nf3 {[%clk 01:32:09]} {[%emt 00:00:24]}
Ng4 {[%clk 01:31:52]} {[%emt 00:01:06]} 8. Qd2 {[%clk 01:32:15]} {[%emt
00:00:24]} e5 {[%clk 01:32:06]} {[%emt 00:00:17]} 9. h3 {[%clk 01:31:41]}
{[%emt 00:01:03]} Nxe3 {[%clk 01:32:07]} {[%emt 00:00:30]} 10. Qxe3 {[%clk
01:32:04]} {[%emt 00:00:07]} exd4 {[%clk 01:32:26]} {[%emt 00:00:11]} 11. Nxd4
{[%clk 01:32:08]} {[%emt 00:00:25]} Qb6 {[%clk 01:32:25]} {[%emt 00:00:31]} 12.
O-O-O {[%clk 01:30:56]} {[%emt 00:01:42]} Qc7 {[%clk 01:31:07]} {[%emt
00:01:49]} 13. Nf3 {[%clk 01:30:32]} {[%emt 00:00:53]} b5 {[%clk 01:30:48]}
{[%emt 00:00:49]} 14. Rd2 {[%clk 01:26:18]} {[%emt 00:04:44]} a5 {[%emt
00:04:48]} 15. Rhd1 {[%emt 00:02:31]} Bf8 {[%clk 01:23:00]} {[%emt 00:00:59]}
16. e5 {[%clk 01:25:46]} {[%emt 00:01:03]} dxe5 {[%clk 01:19:52]} {[%emt
00:03:39]} 17. Nxe5 {[%clk 01:26:06]} {[%emt 00:00:09]} Be7 {[%clk 01:18:44]}
{[%emt 00:01:38]} 18. Nxd7 {[%clk 01:26:21]} {[%emt 00:00:15]} Bxd7 {[%clk
01:18:27]} {[%emt 00:00:47]} 19. Rxd7 {[%clk 01:26:34]} {[%emt 00:00:17]} Qxd7
{[%clk 01:18:50]} {[%emt 00:00:07]} 20. Rxd7 {[%clk 01:26:59]} {[%emt
00:00:05]} Kxd7 {[%clk 01:19:11]} {[%emt 00:00:08]} 21. Qd4+ {[%clk 01:27:11]}
{[%emt 00:00:18]} Kc7 {[%clk 01:19:01]} {[%emt 00:00:40]} 22. Ne4 {[%clk
01:27:22]} {[%emt 00:00:19]} f5 {[%clk 01:18:01]} {[%emt 00:01:31]} 23. Qe5+
{[%clk 01:27:29]} {[%emt 00:00:23]} Kd7 {[%clk 01:18:08]} {[%emt 00:00:23]} 24.
Nc5+ {[%clk 01:27:24]} {[%emt 00:00:35]} Bxc5 {[%clk 01:17:52]} {[%emt
00:00:46]} 25. Qxc5 {[%clk 01:27:47]} {[%emt 00:00:06]} Rhe8 {[%clk 01:17:20]}
{[%emt 00:01:02]} 26. Bf3 {[%clk 01:27:36]} {[%emt 00:00:41]} Re6 {[%clk
01:17:43]} {[%emt 00:00:07]} 27. Qd4+ {[%clk 01:26:48]} {[%emt 00:01:19]} Kc7
{[%clk 01:16:46]} {[%emt 00:02:03]} 28. Qg7+ {[%clk 01:27:26]} {[%emt
00:00:15]} Kb6 {[%clk 01:17:07]} {[%emt 00:00:10]} 29. Qxh7 {[%clk 01:27:03]}
{[%emt 00:00:52]} a4 {[%clk 01:17:19]} {[%emt 00:00:19]} 30. Qd7 {[%clk
01:26:51]} {[%emt 00:00:41]} Rae8 {[%clk 01:17:23]} {[%emt 00:00:26]} 31. Kd2
{[%clk 01:26:11]} {[%emt 00:01:08]} R8e7 {[%clk 01:17:13]} {[%emt 00:00:40]} 32.
Qd8+ {[%clk 01:25:40]} {[%emt 00:01:02]} Kc5 {[%clk 01:17:30]} {[%emt
00:00:13]} 33. b4+ {[%clk 01:19:41]} {[%emt 00:06:28]} axb3 {[%clk 01:17:47]}
{[%emt 00:00:14]} 34. Kc3 {[%clk 01:19:19]} {[%emt 00:00:52]} Re3+ {[%clk
01:17:21]} {[%emt 00:00:56]} 35. Kb2 {[%clk 01:19:25]} {[%emt 00:00:23]} bxa2
{[%clk 01:17:26]} {[%emt 00:00:26]} 36. Kxa2 {[%clk 01:18:32]} {[%emt
00:01:23]} R7e6 {[%clk 01:16:26]} {[%emt 00:01:30]} 37. Qf8+ {[%clk 01:17:53]}
{[%emt 00:01:08]} Kc4 {[%clk 01:16:23]} {[%emt 00:00:33]} 38. h4 {[%clk
01:15:56]} {[%emt 00:02:27]} c5 {[%clk 01:16:20]} {[%emt 00:00:33]} 39. Qd8
{[%clk 01:15:30]} {[%emt 00:00:57]} Kb4 {[%clk 01:15:59]} {[%emt 00:00:51]} 40.
Qa8 {[%clk 01:14:34]} {[%emt 00:01:26]} Rc3 {[%clk 01:16:05]} {[%emt 00:00:24]}
41. Kb2 {[%clk 01:13:09]} {[%emt 00:01:54]} Rd6 {[%clk 01:14:48]} {[%emt
00:01:47]} 42. Kc1 {[%clk 01:11:36]} {[%emt 00:02:03]} Ra3 {[%emt 00:01:22]} 43.
Qh8 {[%clk 01:11:17]} Rda6 {[%clk 01:14:10]} {[%emt 00:01:05]} 44. Qb2+ {[%clk
01:11:15]} {[%emt 00:00:32]} Ka4 {[%clk 01:13:35]} {[%emt 00:01:06]} 45. c3
{[%clk 01:10:54]} {[%emt 00:00:49]} 1-0

[Event "2. Itzehoer Schach Open"]
[Site "Itzehoe, Germany"]
[Date "2023.04.29"]
[Round "2.51"]
[White "Greiner, Andre"]
[Black "Prigandt, Junis"]
[Result "1-0"]
[TimeControl "90 min für 40 Züge, Rest 30 min + 30 Sek pro Zug"]
[WhiteElo "796"]
[BlackElo "995"]

1. e4 {[%clk 01:30:57]} {[%emt 00:00:01]} e6 {[%clk 01:31:00]} 2. d4 {[%clk
01:31:18]} {[%emt 00:00:10]} d5 {[%clk 01:31:28]} {[%emt 00:00:03]} 3. Nc3
{[%clk 01:31:05]} {[%emt 00:00:43]} c5 {[%clk 01:30:56]} {[%emt 00:01:04]} 4.
Nf3 {[%clk 01:29:50]} {[%emt 00:01:43]} Nc6 {[%clk 01:31:08]} {[%emt 00:00:19]}
5. Bb5 {[%clk 01:29:29]} {[%emt 00:00:50]} Qb6 {[%clk 01:31:16]} {[%emt
00:00:23]} 6. Be3 {[%clk 01:27:55]} {[%emt 00:02:03]} Nge7 {[%clk 01:30:49]}
{[%emt 00:00:57]} 7. Ne5 {[%emt 00:01:50]} f5 {[%clk 01:30:30]} 8. Qf3 {[%clk
01:23:55]} {[%emt 00:03:57]} cxd4 {[%clk 01:29:16]} {[%emt 00:01:44]} 9. Qh5+
{[%emt 00:06:23]} g6 {[%clk 01:28:35]} {[%emt 00:01:09]} 10. Bxc6+ {[%clk
01:17:28]} {[%emt 00:01:07]} bxc6 {[%clk 01:28:48]} {[%emt 00:00:16]} 11. Na4
{[%clk 01:15:18]} {[%emt 00:02:41]} Qb4+ {[%clk 01:28:39]} {[%emt 00:00:39]} 12.
Bd2 {[%clk 01:12:51]} {[%emt 00:02:56]} Qxa4 {[%clk 01:28:40]} {[%emt
00:00:29]} 13. Qd1 {[%clk 01:12:10]} {[%emt 00:01:10]} dxe4 {[%clk 01:25:32]}
{[%emt 00:03:39]} 14. O-O {[%clk 01:11:57]} {[%emt 00:00:43]} Qb5 {[%clk
01:25:26]} {[%emt 00:00:36]} 15. Bf4 {[%clk 01:08:48]} {[%emt 00:03:38]} Qxb2
{[%clk 01:24:16]} {[%emt 00:01:41]} 16. Nc4 {[%clk 01:08:34]} {[%emt 00:00:44]}
Qc3 {[%clk 01:23:47]} {[%emt 00:00:59]} 17. Nd6+ {[%clk 01:07:25]} {[%emt
00:01:38]} Kd7 {[%clk 01:23:20]} {[%emt 00:00:56]} 18. Rb1 {[%clk 01:05:05]}
{[%emt 00:02:49]} d3 {[%clk 01:22:50]} {[%emt 00:01:01]} 19. cxd3 {[%clk
01:02:35]} {[%emt 00:02:59]} exd3 {[%clk 01:23:01]} {[%emt 00:00:20]} 20. Qa4
{[%clk 00:59:26]} {[%emt 00:03:38]} Nd5 {[%clk 01:22:11]} {[%emt 00:01:21]} 21.
Nf7 {[%clk 00:55:33]} {[%emt 00:04:23]} Rg8 {[%clk 01:19:10]} {[%emt 00:03:31]}
22. Be5 {[%clk 00:52:37]} {[%emt 00:03:26]} Qc2 {[%clk 01:18:32]} {[%emt
00:01:08]} 23. Qa5 {[%clk 00:51:02]} {[%emt 00:02:04]} Ke7 {[%clk 01:15:42]}
{[%emt 00:03:21]} 24. Nd6 {[%clk 00:48:47]} {[%emt 00:02:44]} Bg7 {[%clk
01:13:42]} {[%emt 00:02:30]} 25. Nxc8+ {[%clk 00:45:12]} {[%emt 00:04:05]}
Raxc8 {[%clk 01:13:53]} {[%emt 00:00:20]} 26. Rb7+ {[%clk 00:44:06]} {[%emt
00:01:35]} Kf8 {[%clk 01:13:43]} {[%emt 00:00:41]} 27. Bd6+ {[%clk 00:41:39]}
{[%emt 00:02:57]} Ne7 {[%clk 01:11:15]} {[%emt 00:02:58]} 28. Bxe7+ {[%clk
00:40:35]} {[%emt 00:01:33]} Kf7 {[%clk 01:11:31]} {[%emt 00:00:15]} 29. Bg5+
{[%clk 00:39:10]} {[%emt 00:01:54]} Ke8 {[%clk 01:08:32]} {[%emt 00:03:30]} 30.
Re7+ {[%clk 00:38:24]} {[%emt 00:01:16]} Kf8 {[%clk 01:07:38]} {[%emt
00:01:25]} 31. Qxa7 {[%clk 00:36:22]} {[%emt 00:02:31]} 1-0

[Event "2. Itzehoer Schach Open"]
[Site "Itzehoe, Germany"]
[Date "2023.04.29"]
[Round "2.46"]
[White "Lueders Vega, Iago Ernst"]
[Black "Steinbach, Aaron"]
[Result "1/2-1/2"]
[TimeControl "90 min für 40 Züge, Rest 30 min + 30 Sek pro Zug"]
[WhiteElo "1333"]
[BlackElo "787"]

1. e4 {[%clk 01:30:59]} d6 {[%clk 01:30:48]} {[%emt 00:00:13]} 2. d4 {[%clk
01:31:22]} {[%emt 00:00:07]} Nf6 {[%clk 01:31:11]} {[%emt 00:00:06]} 3. Nc3
{[%clk 01:31:45]} {[%emt 00:00:08]} g6 {[%clk 01:31:35]} {[%emt 00:00:06]} 4.
Bg5 {[%clk 01:32:03]} {[%emt 00:00:12]} Bg7 {[%clk 01:31:52]} {[%emt 00:00:13]}
5. Bc4 {[%clk 01:32:24]} {[%emt 00:00:08]} c6 {[%clk 01:31:48]} {[%emt
00:00:36]} 6. Nf3 {[%clk 01:32:35]} {[%emt 00:00:19]} Bg4 {[%clk 01:32:01]}
{[%emt 00:00:16]} 7. h3 {[%clk 01:32:52]} {[%emt 00:00:13]} Bxf3 {[%clk
01:32:25]} {[%emt 00:00:06]} 8. Qxf3 {[%clk 01:33:15]} {[%emt 00:00:07]} O-O
{[%clk 01:32:27]} {[%emt 00:00:28]} 9. O-O {[%clk 01:33:06]} {[%emt 00:00:39]}
b5 {[%clk 01:32:40]} {[%emt 00:00:17]} 10. Be2 {[%clk 01:33:21]} {[%emt
00:00:15]} Nbd7 {[%clk 01:32:05]} {[%emt 00:01:06]} 11. a3 {[%clk 01:32:12]}
{[%emt 00:01:38]} a6 {[%clk 01:31:06]} {[%emt 00:01:30]} 12. Rad1 {[%clk
01:31:11]} {[%emt 00:01:31]} h6 {[%clk 01:28:10]} {[%emt 00:03:26]} 13. Bxf6
{[%clk 01:31:35]} {[%emt 00:00:05]} Bxf6 {[%clk 01:28:07]} {[%emt 00:00:33]} 14.
Qd3 {[%clk 01:26:15]} {[%emt 00:05:50]} c5 {[%clk 01:24:44]} {[%emt 00:03:54]}
15. dxc5 {[%clk 01:22:56]} {[%emt 00:03:49]} Nxc5 {[%clk 01:24:53]} {[%emt
00:00:20]} 16. Qe3 {[%clk 01:22:29]} {[%emt 00:00:58]} Bg7 {[%clk 01:24:20]}
{[%emt 00:01:00]} 17. b4 {[%clk 01:22:10]} {[%emt 00:00:52]} Nb7 {[%clk
01:23:32]} {[%emt 00:01:18]} 18. Bf3 {[%clk 01:20:56]} {[%emt 00:01:44]} Qc7
{[%clk 01:23:16]} {[%emt 00:00:46]} 19. Nd5 {[%clk 01:20:33]} {[%emt 00:00:53]}
Qd8 {[%clk 01:20:59]} {[%emt 00:02:45]} 20. e5 {[%clk 01:19:05]} {[%emt
00:02:00]} Re8 {[%clk 01:18:49]} {[%emt 00:02:38]} 21. e6 {[%clk 01:17:24]}
{[%emt 00:02:12]} f5 {[%clk 01:16:59]} {[%emt 00:02:18]} 22. Nf4 {[%clk
01:15:54]} {[%emt 00:02:00]} g5 {[%clk 01:14:34]} {[%emt 00:02:54]} 23. Bxb7
{[%clk 01:15:45]} {[%emt 00:00:40]} gxf4 {[%clk 01:14:44]} {[%emt 00:00:20]} 24.
Qxf4 {[%clk 01:16:03]} {[%emt 00:00:12]} Ra7 {[%clk 01:13:54]} {[%emt
00:01:20]} 25. Bd5 {[%clk 01:15:47]} {[%emt 00:00:45]} Rf8 {[%clk 01:13:27]}
{[%emt 00:00:59]} 26. Rd3 {[%clk 01:16:01]} {[%emt 00:00:14]} Kh7 {[%clk
01:13:19]} {[%emt 00:00:39]} 27. Kh1 {[%clk 01:06:08]} {[%emt 00:10:24]} Qc8
{[%clk 01:11:11]} {[%emt 00:02:37]} 28. Qe3 {[%clk 01:04:40]} {[%emt 00:01:58]}
Qxc2 {[%clk 01:10:14]} {[%emt 00:01:27]} 29. Rc1 {[%clk 01:04:40]} {[%emt
00:00:28]} Qb2 {[%clk 01:08:59]} {[%emt 00:01:47]} 30. Rb3 {[%clk 01:05:02]}
{[%emt 00:00:09]} Qd4 {[%clk 01:08:15]} {[%emt 00:01:12]} 31. Qf3 {[%clk
01:01:02]} {[%emt 00:04:30]} Kg8 {[%clk 01:06:15]} {[%emt 00:02:31]} 32. Rbc3
{[%clk 01:00:30]} {[%emt 00:01:02]} Qe5 {[%clk 01:04:46]} {[%emt 00:01:59]} 33.
Re3 {[%clk 00:58:22]} {[%emt 00:02:37]} Qf6 {[%clk 01:03:55]} {[%emt 00:01:22]}
34. Rg1 {[%clk 00:58:18]} {[%emt 00:00:34]} Rc7 {[%clk 01:03:18]} {[%emt
00:01:07]} 35. g4 {[%clk 00:58:17]} {[%emt 00:00:31]} fxg4 {[%clk 01:03:07]}
{[%emt 00:00:41]} 36. Qxg4 {[%clk 00:58:33]} {[%emt 00:00:15]} Kh8 {[%clk
01:01:28]} {[%emt 00:02:08]} 37. Reg3 {[%clk 00:58:17]} {[%emt 00:00:46]} Rg8
{[%clk 01:01:22]} {[%emt 00:00:36]} 38. Be4 {[%clk 00:57:42]} {[%emt 00:01:05]}
Rc4 {[%clk 01:00:52]} {[%emt 00:01:00]} 39. Rf3 {[%clk 00:51:23]} {[%emt
00:06:50]} Qe5 {[%clk 00:59:11]} {[%emt 00:02:08]} 40. Rf4 {[%clk 00:50:19]}
{[%emt 00:01:36]} d5 {[%clk 00:57:56]} {[%emt 00:01:45]} 1/2-1/2